[Event "2nd Gujarat Open 2019"]
[Site "Ahmedabad, Gujarat"]
[Date "2019.09.27"]
[Round "8.10"]
[White "Abu Sufian, Shakil"]
[Black "Nitin, S.."]
[Result "1-0"]
[ECO "B86"]
[WhiteElo "2255"]
[BlackElo "2361"]
[Annotator "NA"]
[PlyCount "129"]
[EventDate "2019.09.22"]
[EventType "swiss"]
[EventCountry "IND"]
[SourceTitle "playchess.com"]
[Source "ChessBase"]
[SourceQuality "1"]
[TimeControl "5400+30"]

1. e4 {[%emt 0:00:00]} c5 {[%emt 0:08:34]} 2. Nf3 {[%emt 0:00:00]} d6 {[%emt 0:00:25]} 3. d4 {[%emt 0:00:00]} cxd4 {[%emt 0:00:04]} 4. Nxd4 {[%emt 0:00:00]} Nf6 {[%emt 0:00:07]} 5. Nc3 {[%emt 0:00:00]} e6 {[%emt 0:00:06]} 6. Bc4 {[%emt 0:00:27]} Be7 {[%emt 0:00:17]} 7. Bb3 {[%emt 0:03:06]} O-O {[%emt 0:00:09]} 8. g4 {[%emt 0:00:58]} d5 {[%emt 0:09:26]} 9. exd5 {[%emt 0:02:24]} exd5 {[%emt 0:00:09]} 10. Rg1 {[%emt 0:02:47]} Nc6 {[%emt 0:01:51]} 11. g5 {[%emt 0:07:47]} Ne4 {[%emt 0:00:47]} 12. Nxc6 {[%emt 0:08:41]} bxc6 {[%emt 0:02:22]} 13. Nxe4 {[%emt 0:01:01]} dxe4 {[%emt 0:00:43]} 14. Qxd8 {[%emt 0:00:18]} Rxd8 {[%emt 0:00:32]} 15. Be3 {[%emt 0:00:38]} a5 {[%emt 0:00:42]} 16. Rd1 {[%emt 0:10:35]} Bf5 {[%emt 0:08:00]} 17. Rxd8+ {[%emt 0:04:04]} Bxd8 {[%emt 0:04:41]} 18. Kd2 {[%emt 0:07:09]} Bc7 {[%emt 0:00:57]} 19. h4 {[%emt 0:00:10]} a4 {[%emt 0:01:00]} 20. Bc4 {[%emt 0:00:09]} Be5 {[%emt 0:01:22]} 21. c3 {[%emt 0:02:40]} Bg6 {[%emt 0:01:36]} 22. Kc2 {[%emt 0:01:38]} Bh5 {[%emt 0:00:18]} 23. b3 {[%emt 0:01:15]} axb3+ {[%emt 0:03:06]} 24. Kxb3 {[%emt 0:00:45]} Kf8 {[%emt 0:00:29]} 25. a4 {[%emt 0:00:29]} Ke7 {[%emt 0:02:13]} 26. Ra1 {[%emt 0:00:39]} Bc7 {[%emt 0:00:53]} 27. Bc5+ {[%emt 0:03:09]} Bd6 {[%emt 0:00:19]} 28. Bd4 {[%emt 0:00:22]} Rb8+ {[%emt 0:03:11]} 29. Kc2 {[%emt 0:00:24]} Bg6 {[%emt 0:00:42]} 30. Be3 {[%emt 0:00:23]} f5 {[%emt 0:01:36]} 31. gxf6+ {[%emt 0:00:30]} gxf6 {[%emt 0:00:30]} 32. a5 {[%emt 0:02:29]} f5 {[%emt 0:00:00]} 33. a6 {[%emt 0:02:09]} f4 {[%emt 0:00:00]} 34. a7 {[%emt 0:00:15]} Ra8 {[%emt 0:00:00]} 35. Bb6 {[%emt 0:00:24]} e3+ {[%emt 0:00:08]} 36. Kb2 {[%emt 0:12:47]} Be4 {[%emt 0:02:23]} 37. fxe3 {[%emt 0:00:19]} f3 {[%emt 0:00:05]} 38. Rg1 {[%emt 0:00:36]} c5 {[%emt 0:00:42]} 39. Rg4 {[%emt 0:01:20]} Bc6 {[%emt 0:00:20]} 40. Rg7+ {[%emt 0:00:48]} Kf6 {[%emt 0:00:05]} 41. Rxh7 {[%emt 0:00:23]} Rf8 {[%emt 0:02:28]} 42. Rh6+ {[%emt 0:03:51]} Ke7 {[%emt 0:00:15]} 43. Bxc5 {[%emt 0:00:17]} Bxc5 {[%emt 0:01:07]} 44. Rxc6 {[%emt 0:00:06]} Bd6 {[%emt 0:00:04]} 45. Ra6 {[%emt 0:01:02]} Ra8 {[%emt 0:00:13]} 46. Kc2 {[%emt 0:02:51]} Bc5 {[%emt 0:01:09]} 47. Kd2 {[%emt 0:02:30]} Rxa7 {[%emt 0:00:10]} 48. Rxa7+ {[%emt 0:00:14]} Bxa7 {[%emt 0:00:06]} 49. Bd5 {[%emt 0:10:44]} f2 {[%emt 0:00:14]} 50. Bg2 {[%emt 0:00:05]} Kf6 {[%emt 0:01:45]} 51. Ke2 {[%emt 0:00:04]} Kf5 {[%emt 0:00:09]} 52. Bh3+ {[%emt 0:01:59]} Kg6 {[%emt 0:12:09]} 53. Kxf2 {[%emt 0:00:08]} Kh5 {[%emt 0:00:04]} 54. Kf3 {[%emt 0:00:08]} Kxh4 {[%emt 0:00:05]} 55. Kf4 {[%emt 0:01:54]} Bb8+ {[%emt 0:00:18]} 56. Kf5 {[%emt 0:00:13]} Kxh3 {[%emt 0:00:03]} 57. e4 {[%emt 0:00:20]} Kg3 {[%emt 0:00:05]} 58. e5 {[%emt 0:01:56]} Kf3 {[%emt 0:00:06]} 59. c4 {[%emt 0:00:38]} Ba7 {[%emt 0:01:14]} 60. e6 {[%emt 0:00:21]} Bc5 {[%emt 0:00:10]} 61. Ke5 {[%emt 0:00:13]} Kg4 {[%emt 0:00:35]} 62. Kd5 {[%emt 0:00:05]} Be7 {[%emt 0:00:13]} 63. c5 {[%emt 0:00:11]} Kf5 {[%emt 0:00:06]} 64. c6 {[%emt 0:00:05]} Bd8 {[%emt 0:00:07]} 65. e7 {[%emt 0:00:11]} 1-0

[Event "2nd Gujarat Open 2019"]
[Site "Ahmedabad, Gujarat"]
[Date "2019.09.27"]
[Round "8.12"]
[White "Liyanage, Ranindu Dilshan"]
[Black "Bharat Kumar Reddy Poluri"]
[Result "1/2-1/2"]
[ECO "E06"]
[WhiteElo "1956"]
[BlackElo "2304"]
[Annotator "NA"]
[PlyCount "96"]
[EventDate "2019.09.22"]
[EventType "swiss"]
[EventCountry "IND"]
[SourceTitle "playchess.com"]
[Source "ChessBase"]
[SourceQuality "1"]
[TimeControl "5400+30"]

1. d4 {[%emt 0:00:00]} e6 {[%emt 0:03:38]} 2. c4 {[%emt 0:00:00]} Nf6 {[%emt 0:00:02]} 3. Nf3 {[%emt 0:00:00]} d5 {[%emt 0:00:07]} 4. g3 {[%emt 0:00:12]} Be7 {[%emt 0:00:06]} 5. Bg2 {[%emt 0:00:08]} O-O {[%emt 0:00:03]} 6. O-O {[%emt 0:00:10]} dxc4 {[%emt 0:00:06]} 7. Ne5 {[%emt 0:00:16]} c5 {[%emt 0:00:15]} 8. dxc5 {[%emt 0:00:34]} Qc7 {[%emt 0:00:05]} 9. Nxc4 {[%emt 0:00:24]} Qxc5 {[%emt 0:00:14]} 10. b3 {[%emt 0:03:59]} Rd8 {[%emt 0:00:16]} 11. Qc2 {[%emt 0:01:47]} Nc6 {[%emt 0:00:18]} 12. Ba3 {[%emt 0:02:01]} Nb4 {[%emt 0:00:18]} 13. Bxb4 {[%emt 0:03:26]} Qxb4 {[%emt 0:00:02]} 14. Nbd2 {[%emt 0:01:48]} Bd7 {[%emt 0:03:18]} 15. a3 {[%emt 0:07:51]} Qb5 {[%emt 0:00:21]} 16. Ne4 {[%emt 0:01:17]} Rac8 {[%emt 0:01:06]} 17. Nxf6+ {[%emt 0:02:45]} Bxf6 {[%emt 0:00:55]} 18. Rad1 {[%emt 0:00:14]} Qa6 {[%emt 0:01:45]} 19. Qd2 {[%emt 0:08:10]} Bb5 {[%emt 0:14:00]} 20. Qb4 {[%emt 0:00:34]} Rc7 {[%emt 0:07:25]} 21. Rxd8+ {[%emt 0:19:14]} Bxd8 {[%emt 0:00:16]} 22. Rd1 {[%emt 0:00:18]} Be7 {[%emt 0:01:31]} 23. Qd2 {[%emt 0:00:53]} g5 {[%emt 0:12:01]} 24. Qb2 {[%emt 0:06:16]} Bxc4 {[%emt 0:10:13]} 25. bxc4 {[%emt 0:00:06]} b6 {[%emt 0:00:32]} 26. c5 {[%emt 0:06:01]} bxc5 {[%emt 0:03:12]} 27. Qb8+ {[%emt 0:00:52]} Rc8 {[%emt 0:04:36]} 28. Qb2 {[%emt 0:05:19]} Qb6 {[%emt 0:04:20]} 29. Qc2 {[%emt 0:01:57]} c4 {[%emt 0:01:41]} 30. Rd7 {[%emt 0:03:18]} Rc7 {[%emt 0:01:57]} 31. Rxc7 Qxc7 {[%emt 0:00:02]} 32. Be4 {[%emt 0:00:40]} Bxa3 {[%emt 0:01:19]} 33. Bxh7+ {[%emt 0:00:24]} Kg7 {[%emt 0:00:29]} 34. Bd3 {[%emt 0:00:50]} c3 {[%emt 0:00:06]} 35. Qa4 {[%emt 0:00:38]} Bd6 {[%emt 0:03:13]} 36. Qg4 {[%emt 0:01:36]} Qc5 {[%emt 0:00:54]} 37. h4 {[%emt 0:02:05]} c2 {[%emt 0:06:06]} 38. Bxc2 {[%emt 0:00:10]} Qxc2 {[%emt 0:00:12]} 39. Qd4+ {[%emt 0:00:05]} Kg6 {[%emt 0:00:59]} 40. Qxd6 {[%emt 0:00:55]} Qxe2 {[%emt 0:02:47]} 41. hxg5 {[%emt 0:02:35]} Qe1+ {[%emt 0:00:33]} 42. Kg2 {[%emt 0:00:08]} Qe4+ {[%emt 0:00:30]} 43. Kg1 {[%emt 0:00:30]} Qb1+ {[%emt 0:01:45]} 44. Kg2 {[%emt 0:02:20]} Qb7+ {[%emt 0:00:30]} 45. Kg1 {[%emt 0:00:30]} Kxg5 {[%emt 0:00:07]} 46. Qf4+ {[%emt 0:00:00]} Kg6 {[%emt 0:00:04]} 47. Qg4+ {[%emt 0:00:00]} Kf6 {[%emt 0:00:15]} 48. Qh4+ {[%emt 0:00:00]} Kg7 {[%emt 0:01:09]} 1/2-1/2

[Event "2nd Gujarat Open 2019"]
[Site "Ahmedabad, Gujarat"]
[Date "2019.09.27"]
[Round "8.13"]
[White "Neelotpal, Das"]
[Black "Patil, Pratik"]
[Result "1-0"]
[ECO "B43"]
[WhiteElo "2433"]
[BlackElo "2187"]
[Annotator "NA"]
[PlyCount "35"]
[EventDate "2019.09.22"]
[EventType "swiss"]
[EventCountry "IND"]
[SourceTitle "playchess.com"]
[Source "ChessBase"]
[SourceQuality "1"]
[TimeControl "5400+30"]

1. e4 {[%emt 0:00:00]} c5 {[%emt 0:09:46]} 2. Nf3 {[%emt 0:00:08]} e6 {[%emt 0:00:31]} 3. d4 {[%emt 0:00:26]} cxd4 {[%emt 0:00:06]} 4. Nxd4 {[%emt 0:00:05]} a6 {[%emt 0:00:06]} 5. Nc3 {[%emt 0:00:10]} b5 {[%emt 0:00:12]} 6. Bd3 {[%emt 0:00:20]} Qb6 {[%emt 0:00:03]} 7. Nb3 {[%emt 0:00:48]} Qc7 {[%emt 0:00:02]} 8. O-O {[%emt 0:00:13]} Nf6 {[%emt 0:01:36]} 9. f4 {[%emt 0:00:34]} b4 {[%emt 0:00:46]} 10. Nb1 {[%emt 0:03:55]} Bb7 {[%emt 0:02:08]} 11. Qe2 {[%emt 0:00:43]} d6 {[%emt 0:16:02]} 12. N1d2 {[%emt 0:09:02]} Nbd7 {[%emt 0:01:03]} 13. a3 {[%emt 0:06:45]} a5 {[%emt 0:05:06]} 14. Nd4 {[%emt 0:14:51]} Qb6 {[%emt 0:11:40]} 15. Nc4 {[%emt 0:02:47]} Qc5 {[%emt 0:03:15]} 16. Be3 {[%emt 0:03:36]} Qh5 {[%emt 0:00:07]} 17. Qxh5 {[%emt 0:01:30]} Nxh5 {[%emt 0:00:02]} 18. Nb5 {[%emt 0:06:52]} 1-0

[Event "2nd Gujarat Open 2019"]
[Site "Ahmedabad, Gujarat"]
[Date "2019.09.27"]
[Round "8.14"]
[White "Rahman, Ziaur"]
[Black "Sobh, Amrou"]
[Result "1-0"]
[ECO "A45"]
[WhiteElo "2492"]
[BlackElo "2172"]
[Annotator "ChessBase"]
[PlyCount "111"]
[EventDate "2019.09.22"]
[EventType "swiss"]
[EventCountry "IND"]
[SourceTitle "playchess.com"]
[Source "ChessBase"]
[SourceQuality "1"]
[TimeControl "5400+30"]

1. d4 {[%emt 0:00:21]} Nf6 {[%emt 0:00:00]} 2. Bg5 {[%emt 0:01:20]} g6 {[%emt 0:01:05]} 3. Bxf6 {[%emt 0:01:46]} exf6 {[%emt 0:00:03]} 4. e3 {[%emt 0:01:13]} Bg7 {[%emt 0:01:13]} 5. c4 {[%emt 0:00:41]} O-O {[%emt 0:01:15]} 6. Nc3 {[%emt 0:00:12]} d6 {[%emt 0:01:36]} 7. Be2 {[%emt 0:08:33]} c5 {[%emt 0:00:25]} 8. Nf3 {[%emt 0:00:43]} Nc6 {[%emt 0:00:59]} 9. h3 {[%emt 0:06:28]} f5 {[%emt 0:00:50]} 10. O-O {[%emt 0:03:31]} Qb6 {[%emt 0:02:55]} 11. Rb1 {[%emt 0:06:37]} Re8 {[%emt 0:09:52]} 12. Nd5 {[%emt 0:01:36]} Qd8 {[%emt 0:00:24]} 13. b4 {[%emt 0:03:46]} b6 {[%emt 0:05:23]} 14. bxc5 {[%emt 0:03:16]} dxc5 {[%emt 0:00:33]} 15. dxc5 {[%emt 0:00:12]} bxc5 {[%emt 0:02:03]} 16. Qa4 {[%emt 0:10:15]} Bd7 {[%emt 0:03:17]} 17. Qa3 {[%emt 0:03:24]} Bf8 {[%emt 0:01:08]} 18. Rfd1 {[%emt 0:01:18]} Nb4 {[%emt 0:00:28]} 19. Qb2 {[%emt 0:03:11]} Nxd5 {[%emt 0:03:02]} 20. cxd5 {[%emt 0:02:43]} Bd6 {[%emt 0:00:43]} 21. Bc4 {[%emt 0:01:15]} Rb8 {[%emt 0:00:33]} 22. Qc3 {[%emt 0:01:58]} Rb6 {[%emt 0:01:15]} 23. g3 {[%emt 0:00:55]} Qb8 {[%emt 0:01:56]} 24. Rxb6 {[%emt 0:00:03]} axb6 {[%emt 0:00:11]} 25. Rb1 {[%emt 0:02:08]} Bxg3 {[%emt 0:00:49]} 26. Qb3 {[%emt 0:00:15]} Qd6 {[%emt 0:02:14]} 27. Kg2 {[%emt 0:00:58]} Be5 {[%emt 0:02:29]} 28. Qxb6 {[%emt 0:00:13]} Rb8 {[%emt 0:01:50]} 29. Qxb8+ {[%emt 0:00:22]} Qxb8 {[%emt 0:00:01]} 30. Rxb8+ {[%emt 0:00:07]} Bxb8 {[%emt 0:00:02]} 31. Nd2 {[%emt 0:01:34]} Kf8 {[%emt 0:00:56]} 32. Nb3 {[%emt 0:02:49]} Ba7 {[%emt 0:07:56]} 33. h4 {[%emt 0:02:39]} Bb6 {[%emt 0:01:10]} 34. Ba6 {[%emt 0:03:02]} h5 {[%emt 0:03:45]} 35. Nd2 {[%emt 0:01:05]} Bd8 {[%emt 0:00:15]} 36. Kg3 {[%emt 0:00:51]} Bc7+ {[%emt 0:02:06]} 37. Kg2 {[%emt 0:02:36]} Ke7 {[%emt 0:00:47]} 38. Nc4 {[%emt 0:02:32]} Ba4 {[%emt 0:01:30]} 39. f3 {[%emt 0:00:18]} f6 {[%emt 0:02:05]} 40. Kf2 {[%emt 0:01:39]} f4 {[%emt 0:04:32]} 41. e4 {[%emt 0:00:43]} Bb8 {[%emt 0:01:23]} 42. Nb6 {[%emt 0:01:29]} Bd7 {[%emt 0:03:52]} 43. a4 {[%emt 0:00:35]} Ba7 {[%emt 0:07:17]} 44. a5 {[%emt 0:00:51]} Kd8 {[%emt 0:08:08]} 45. Kg2 {[%emt 0:05:53]} Be8 {[%emt 0:05:24]} 46. Nc4 {[%emt 0:02:12]} Kc7 47. Nb2 {[%emt 0:02:43]} Kd6 {[%emt 0:00:58]} 48. Nd3 {[%emt 0:00:15]} g5 {[%emt 0:05:47]} 49. hxg5 {[%emt 0:00:30]} fxg5 {[%emt 0:00:07]} 50. Bc4 {[%emt 0:00:07]} Bg6 {[%emt 0:01:08]} 51. a6 {[%emt 0:00:23]} Kc7 {[%emt 0:01:01]} 52. Bb5 {[%emt 0:01:59]} Kb6 {[%emt 0:00:31]} 53. d6 {[%emt 0:02:09]} Bb8 {[%emt 0:01:41]} 54. d7 {[%emt 0:00:33]} Kc7 {[%emt 0:01:33]} 55. Nxc5 {[%emt 0:00:32]} Bf7 {[%emt 0:00:15]} 56. Nb7 {[%emt 0:00:12]} 1-0

[Event "2nd Gujarat Open 2019"]
[Site "Ahmedabad, Gujarat"]
[Date "2019.09.27"]
[Round "8.15"]
[White "Laxman, R.R."]
[Black "Sanket Chakravarty"]
[Result "1-0"]
[ECO "A46"]
[WhiteElo "2437"]
[BlackElo "2158"]
[Annotator "NA"]
[PlyCount "103"]
[EventDate "2019.09.22"]
[EventType "swiss"]
[EventCountry "IND"]
[SourceTitle "playchess.com"]
[Source "ChessBase"]
[SourceQuality "1"]
[TimeControl "5400+30"]

1. d4 Nf6 2. Nf3 e6 3. c4 d5 4. e3 Be7 5. Nc3 O-O 6. Bd3 dxc4 7. Bxc4 a6 8. e4 c5 9. e5 Nd5 10. Bxd5 exd5 11. dxc5 Bxc5 12. Qxd5 Qxd5 13. Nxd5 Nc6 14. Be3 Bxe3 15. Nxe3 Re8 16. O-O-O h5 17. h3 Nxe5 18. Nxe5 Rxe5 19. Rd8+ Kh7 20. Kd2 Re7 21. Rd1 Rd7+ 22. Kc3 Rc7+ 23. Kb4 b5 24. Ka5 Raa7 25. Nd5 Rc2 26. Nb4 Rc5 27. R1d5 Rac7 28. Rxc5 Rxc5 29. Kb6 Rc4 30. a3 Be6 31. Kxa6 Rf4 32. Rd2 Bc4 33. g3 Rf6+ 34. Ka5 h4 35. gxh4 Kh6 36. Nc2 Kh5 37. Ne3 Kxh4 38. a4 bxa4 39. Nxc4 Rf4 40. Rc2 Kxh3 41. Kxa4 g5 42. b4 f5 43. b5 Rd4 44. b6 g4 45. b7 Rd8 46. Kb5 f4 47. Kb6 Rb8 48. Kc7 Rxb7+ 49. Kxb7 f3 50. Ne3 g3 51. fxg3 Kxg3 52. Nf1+ 1-0

[Event "2nd Gujarat Open 2019"]
[Site "Ahmedabad, Gujarat"]
[Date "2019.09.27"]
[Round "8.17"]
[White "Soham Datar"]
[Black "Vlassov, Nikolai"]
[Result "0-1"]
[ECO "A10"]
[WhiteElo "2160"]
[BlackElo "2384"]
[Annotator "NA"]
[PlyCount "86"]
[EventDate "2019.09.22"]
[EventType "swiss"]
[EventCountry "IND"]
[SourceTitle "playchess.com"]
[Source "ChessBase"]
[SourceQuality "1"]
[TimeControl "5400+30"]

1. c4 {[%emt 0:00:00]} f5 {[%emt 0:00:00]} 2. g3 {[%emt 0:00:01]} Nf6 {[%emt 0:00:00]} 3. Bg2 {[%emt 0:00:06]} e5 {[%emt 0:00:05]} 4. Nc3 {[%emt 0:00:23]} Nc6 {[%emt 0:00:08]} 5. d3 {[%emt 0:01:32]} h6 {[%emt 0:00:08]} 6. e3 {[%emt 0:00:12]} d6 {[%emt 0:00:11]} 7. Nge2 {[%emt 0:00:08]} g5 {[%emt 0:00:10]} 8. h4 {[%emt 0:01:49]} Bg7 {[%emt 0:03:23]} 9. Nd5 {[%emt 0:02:00]} Be6 {[%emt 0:02:30]} 10. hxg5 {[%emt 0:01:08]} hxg5 {[%emt 0:00:03]} 11. Rxh8+ {[%emt 0:00:05]} Bxh8 {[%emt 0:00:04]} 12. d4 {[%emt 0:00:08]} Bxd5 {[%emt 0:04:21]} 13. cxd5 {[%emt 0:00:26]} Ne7 {[%emt 0:00:03]} 14. dxe5 {[%emt 0:01:42]} dxe5 {[%emt 0:00:03]} 15. Nc3 {[%emt 0:00:51]} e4 {[%emt 0:00:27]} 16. g4 {[%emt 0:02:47]} Nxg4 {[%emt 0:07:33]} 17. Bxe4 {[%emt 0:00:24]} Bxc3+ {[%emt 0:01:14]} 18. bxc3 {[%emt 0:00:04]} Qd7 {[%emt 0:04:11]} 19. Bf3 {[%emt 0:01:37]} O-O-O {[%emt 0:00:35]} 20. d6 {[%emt 0:23:25]} cxd6 {[%emt 0:03:10]} 21. Rb1 {[%emt 0:00:04]} Nc6 {[%emt 0:00:23]} 22. Ba3 {[%emt 0:03:34]} Nge5 {[%emt 0:00:45]} 23. Bd5 {[%emt 0:00:10]} f4 {[%emt 0:03:35]} 24. Qb3 {[%emt 0:10:08]} Re8 {[%emt 0:01:25]} 25. Bxd6 {[%emt 0:01:24]} fxe3 {[%emt 0:00:15]} 26. c4 {[%emt 0:07:00]} exf2+ {[%emt 0:01:20]} 27. Kf1 {[%emt 0:00:47]} Ng4 {[%emt 0:06:14]} 28. Bf3 {[%emt 0:03:38]} Re1+ {[%emt 0:17:40]} 29. Rxe1 {[%emt 0:00:23]} fxe1=Q+ {[%emt 0:00:05]} 30. Kxe1 {[%emt 0:00:12]} Qxd6 {[%emt 0:00:30]} 31. Bxg4+ {[%emt 0:00:04]} Kc7 {[%emt 0:00:06]} 32. Bf3 {[%emt 0:07:16]} Qb4+ {[%emt 0:01:51]} 33. Kf2 {[%emt 0:02:09]} Qxb3 {[%emt 0:00:36]} 34. axb3 {[%emt 0:00:02]} Na5 {[%emt 0:00:41]} 35. Bd1 {[%emt 0:00:39]} Kd6 {[%emt 0:00:08]} 36. Kg3 {[%emt 0:01:14]} Kc5 {[%emt 0:00:07]} 37. Kg4 {[%emt 0:00:02]} Kb4 {[%emt 0:00:09]} 38. Kxg5 {[%emt 0:00:11]} Nxb3 {[%emt 0:00:07]} 39. Kf6 {[%emt 0:00:28]} a5 {[%emt 0:00:17]} 40. Ke5 {[%emt 0:00:17]} a4 {[%emt 0:00:08]} 41. Bc2 {[%emt 0:00:34]} Kc3 {[%emt 0:00:21]} 42. Bb1 {[%emt 0:00:42]} Kb2 {[%emt 0:00:19]} 43. Be4 {[%emt 0:00:07]} a3 {[%emt 0:00:30] Kd4} 0-1

[Event "2nd Gujarat Open 2019"]
[Site "Ahmedabad, Gujarat"]
[Date "2019.09.27"]
[Round "8.18"]
[White "Aradhya, Garg"]
[Black "Rathnakaran, K.."]
[Result "0-1"]
[ECO "A40"]
[WhiteElo "2157"]
[BlackElo "2325"]
[Annotator "NA"]
[PlyCount "168"]
[EventDate "2019.09.22"]
[EventType "swiss"]
[EventCountry "IND"]
[SourceTitle "playchess.com"]
[Source "ChessBase"]
[SourceQuality "1"]
[TimeControl "5400+30"]

1. d4 {[%emt 0:00:00]} g6 {[%emt 0:03:45]} 2. e4 {[%emt 0:00:00]} c6 {[%emt 0:00:04]} 3. Nf3 {[%emt 0:00:33]} d5 {[%emt 0:00:08]} 4. Nc3 {[%emt 0:18:27]} Bg4 {[%emt 0:00:13]} 5. exd5 {[%emt 0:03:27]} cxd5 {[%emt 0:00:05]} 6. Bb5+ {[%emt 0:03:57]} Nc6 {[%emt 0:00:07]} 7. Bg5 {[%emt 0:08:05]} Bg7 {[%emt 0:03:00]} 8. h3 {[%emt 0:04:12]} Bxf3 {[%emt 0:00:09]} 9. Qxf3 {[%emt 0:00:04]} a6 {[%emt 0:00:25]} 10. Ba4 {[%emt 0:04:33]} b5 {[%emt 0:12:59]} 11. Qxd5 {[%emt 0:03:13]} Nxd4 {[%emt 0:09:39]} 12. Bb3 {[%emt 0:02:12]} Nxc2+ {[%emt 0:01:12]} 13. Ke2 {[%emt 0:04:23]} Nd4+ {[%emt 0:01:24]} 14. Kf1 {[%emt 0:01:26]} Nxb3 {[%emt 0:02:09]} 15. Qc6+ {[%emt 0:01:07]} Kf8 {[%emt 0:00:06]} 16. axb3 {[%emt 0:00:03]} Nf6 {[%emt 0:12:37]} 17. Rd1 {[%emt 0:02:54]} Qe8 {[%emt 0:01:55]} 18. Qb7 {[%emt 0:05:17]} h5 {[%emt 0:09:05]} 19. Re1 {[%emt 0:07:27]} e6 {[%emt 0:01:49]} 20. h4 {[%emt 0:11:53]} Kg8 {[%emt 0:07:18]} 21. Bxf6 {[%emt 0:01:35]} Bxf6 {[%emt 0:00:08]} 22. Nd5 {[%emt 0:00:03]} Kg7 {[%emt 0:00:32]} 23. Nxf6 {[%emt 0:00:52]} Kxf6 {[%emt 0:00:10]} 24. Rh3 {[%emt 0:00:02]} Kg7 {[%emt 0:00:24]} 25. Rf3 {[%emt 0:02:45]} Rf8 {[%emt 0:00:44]} 26. Rc1 {[%emt 0:00:24]} Qb8 {[%emt 0:13:15]} 27. Rc7 {[%emt 0:00:13]} Qxb7 {[%emt 0:00:07]} 28. Rxb7 {[%emt 0:00:02]} Rac8 {[%emt 0:00:13]} 29. g3 {[%emt 0:01:05]} Rc6 {[%emt 0:01:13]} 30. Ra7 {[%emt 0:01:41]} Kg8 {[%emt 0:00:53]} 31. b4 {[%emt 0:02:58]} f5 {[%emt 0:01:06]} 32. Rc3 {[%emt 0:02:13]} Rxc3 {[%emt 0:07:07]} 33. bxc3 {[%emt 0:00:02]} f4 {[%emt 0:00:06]} 34. Kg2 {[%emt 0:02:52]} f3+ {[%emt 0:01:26]} 35. Kh3 {[%emt 0:01:24]} Rc8 {[%emt 0:00:36]} 36. Rxa6 {[%emt 0:00:25]} Kf7 {[%emt 0:00:34]} 37. Rb6 {[%emt 0:04:39]} Rxc3 {[%emt 0:00:19]} 38. Rxb5 {[%emt 0:00:04]} Rc1 {[%emt 0:00:20]} 39. g4 {[%emt 0:01:03]} Rh1+ {[%emt 0:00:10]} 40. Kg3 {[%emt 0:00:01]} Rg1+ {[%emt 0:00:04]} 41. Kxf3 {[%emt 0:00:41]} Rxg4 {[%emt 0:00:04]} 42. Rb8 {[%emt 0:00:30]} Rxh4 {[%emt 0:00:12]} 43. b5 {[%emt 0:00:06]} Rb4 {[%emt 0:01:14]} 44. b6 {[%emt 0:01:11]} Kg7 {[%emt 0:02:16]} 45. b7 {[%emt 0:01:14]} g5 {[%emt 0:01:14]} 46. Kg3 {[%emt 0:00:45]} Rb3+ {[%emt 0:00:23]} 47. f3 {[%emt 0:00:49]} e5 {[%emt 0:01:37]} 48. Kg2 {[%emt 0:00:32]} h4 {[%emt 0:01:30]} 49. Kh2 {[%emt 0:00:25]} e4 {[%emt 0:02:28]} 50. Re8 {[%emt 0:00:33]} Rxb7 {[%emt 0:00:35]} 51. Rxe4 {[%emt 0:00:02]} Rb2+ {[%emt 0:01:04]} 52. Kh3 {[%emt 0:00:17]} Rf2 {[%emt 0:01:09]} 53. f4 {[%emt 0:01:07]} Rf3+ {[%emt 0:00:04]} 54. Kg4 {[%emt 0:00:01]} Rg3+ {[%emt 0:00:08]} 55. Kf5 {[%emt 0:00:06]} g4 {[%emt 0:00:32]} 56. Re7+ {[%emt 0:00:42]} Kf8 {[%emt 0:00:06]} 57. Rh7 {[%emt 0:00:22]} h3 {[%emt 0:00:09]} 58. Kg5 {[%emt 0:01:24]} Kg8 {[%emt 0:00:40]} 59. Rh4 {[%emt 0:00:24]} Rg2 {[%emt 0:01:03]} 60. f5 {[%emt 0:00:25]} h2 {[%emt 0:00:18]} 61. Kg6 {[%emt 0:00:34]} Rf2 {[%emt 0:00:58]} 62. f6 {[%emt 0:00:37]} g3 {[%emt 0:00:20]} 63. Rd4 {[%emt 0:00:34]} Rxf6+ {[%emt 0:00:16]} 64. Kxf6 {[%emt 0:00:05]} h1=Q {[%emt 0:00:10]} 65. Rg4+ {[%emt 0:00:20]} Kf8 {[%emt 0:00:16]} 66. Rxg3 {[%emt 0:00:06]} Qh6+ {[%emt 0:02:22]} 67. Kf5 {[%emt 0:00:12]} Kf7 {[%emt 0:00:34]} 68. Rf3 {[%emt 0:00:34]} Qh5+ {[%emt 0:00:36]} 69. Kf4 {[%emt 0:00:42]} Kf6 {[%emt 0:00:21]} 70. Ke4+ {[%emt 0:00:24]} Ke6 {[%emt 0:00:12]} 71. Re3 {[%emt 0:00:05]} Qg4+ {[%emt 0:00:09]} 72. Kd3+ {[%emt 0:00:05]} Kd5 {[%emt 0:00:06]} 73. Kd2 {[%emt 0:00:20]} Qf4 {[%emt 0:00:56]} 74. Kd3 {[%emt 0:00:17]} Qc4+ {[%emt 0:00:13]} 75. Kd2 {[%emt 0:00:02]} Kd4 {[%emt 0:00:20]} 76. Re2 {[%emt 0:01:08]} Qb4+ {[%emt 0:02:44]} 77. Kc2 {[%emt 0:00:18]} Qa4+ {[%emt 0:00:39]} 78. Kd2 {[%emt 0:00:21]} Qa1 {[%emt 0:01:03]} 79. Kc2 {[%emt 0:01:06]} Qa2+ {[%emt 0:00:15]} 80. Kd1 {[%emt 0:00:02]} Qb1+ {[%emt 0:00:19]} 81. Kd2 {[%emt 0:00:01]} Qf1 {[%emt 0:00:09]} 82. Re1 {[%emt 0:01:13]} Qd3+ {[%emt 0:00:17]} 83. Kc1 {[%emt 0:00:06]} Kc3 {[%emt 0:00:24]} 84. Re2 {[%emt 0:00:06]} Qxe2 {[%emt 0:00:16]} 0-1

[Event "2nd Gujarat Open 2019"]
[Site "Ahmedabad, Gujarat"]
[Date "2019.09.27"]
[Round "8.19"]
[White "Zia, Tahsin Tajwar"]
[Black "Pranav Vijay"]
[Result "0-1"]
[ECO "A45"]
[WhiteElo "2142"]
[BlackElo "2265"]
[Annotator "NA"]
[PlyCount "64"]
[EventDate "2019.09.22"]
[EventType "swiss"]
[EventCountry "IND"]
[SourceTitle "playchess.com"]
[Source "ChessBase"]
[SourceQuality "1"]
[TimeControl "5400+30"]

1. d4 {[%emt 0:00:00]} Nf6 {[%emt 0:00:00]} 2. Bg5 {[%emt 0:00:39]} Ne4 {[%emt 0:00:00]} 3. Bf4 {[%emt 0:00:07]} c5 {[%emt 0:00:09]} 4. f3 {[%emt 0:00:06]} Nf6 {[%emt 0:01:31]} 5. d5 {[%emt 0:00:27]} g6 {[%emt 0:02:48]} 6. e4 {[%emt 0:00:24]} d6 {[%emt 0:01:14]} 7. Nc3 {[%emt 0:00:14]} Nbd7 {[%emt 0:02:14]} 8. Qd2 {[%emt 0:00:53]} a6 {[%emt 0:02:04]} 9. a4 {[%emt 0:00:10]} Qa5 {[%emt 0:01:15]} 10. Ra3 {[%emt 0:04:11]} h6 {[%emt 0:03:22]} 11. g4 {[%emt 0:03:07]} Bg7 {[%emt 0:02:38]} 12. Nge2 {[%emt 0:03:53]} Rb8 {[%emt 0:01:36]} 13. Nc1 {[%emt 0:02:01]} Qc7 {[%emt 0:03:11]} 14. Nb3 {[%emt 0:03:06]} g5 {[%emt 0:03:38]} 15. Be3 {[%emt 0:03:34]} Ne5 {[%emt 0:00:35]} 16. Qg2 {[%emt 0:05:31]} Ng6 {[%emt 0:01:38]} 17. h4 {[%emt 0:15:19]} Nxh4 {[%emt 0:03:21]} 18. Rxh4 {[%emt 0:01:04]} gxh4 {[%emt 0:00:08]} 19. Qh2 {[%emt 0:07:20]} h5 {[%emt 0:03:11]} 20. g5 {[%emt 0:02:05]} Nd7 {[%emt 0:01:19]} 21. f4 {[%emt 0:00:22]} Qb6 {[%emt 0:10:20]} 22. Bd3 {[%emt 0:09:26]} Qc7 {[%emt 0:07:56]} 23. Be2 {[%emt 0:00:42]} Nf8 {[%emt 0:11:03]} 24. a5 {[%emt 0:03:33]} Bg4 {[%emt 0:00:47]} 25. Bc4 {[%emt 0:02:48]} Ng6 {[%emt 0:01:56]} 26. Na4 {[%emt 0:08:49]} h3 {[%emt 0:06:18]} 27. Qg3 {[%emt 0:02:51]} f6 {[%emt 0:00:42]} 28. gxf6 {[%emt 0:04:49]} Bxf6 {[%emt 0:00:06]} 29. Kf1 {[%emt 0:00:15]} Rf8 {[%emt 0:04:29]} 30. Nd2 {[%emt 0:03:20]} Be5 {[%emt 0:00:38]} 31. Kg1 {[%emt 0:00:58]} Nxf4 {[%emt 0:00:41]} 32. Bxf4 {[%emt 0:00:06]} Rxf4 0-1